Cogmind - Beta 17 @@@ ROGUE MODE // 2026.07.22 @ 21:41:16 Player: Noggity Result: Destroyed by GJ-W87(R) with Subdweller Laser Performance ------------- Evolutions (0) 0 Regions Visited (2) 400 Robots Destroyed (12) 60 Value Destroyed (362) 362 Prototype IDs (1) 20 Alien Tech Used (0) 0 Bonus (0) 0 TOTAL SCORE: 842 Bonus ------- None Cogmind --------- Core Integrity 0/250 Matter 264/300 Energy 180/180 System Corruption 9% Temperature Cool (6) Movement Core (200) Ox3 Location -10/Subcaves Parts ------- > --- POWER (1) -------- Meta Core > --- PROPULSION (2+1) - (None) > --- UTILITY (2+1) ---- Subdweller Optics > --- WEAPON (2+1) ----- Flail > --- INVENTORY (5) ---- Carbon-fiber Leg High-capacity Storage Unit Subdweller Optics Subdweller Machine Gun Peak State ------------ > --- POWER ------------ Meta Core > --- PROPULSION ------- (None) > --- UTILITY ---------- Subdweller Optics Subdweller Optics > --- WEAPON ----------- Subdweller Machine Gun Flail > --- INVENTORY -------- Carbon-fiber Leg High-capacity Storage Unit [Rating: 21] Favorites ----------- Power Ion Engine Engine Ion Engine Power Core Meta Core Propulsion Light Treads Treads Light Treads Leg Carbon-fiber Leg Utility Seismic Detector Device Seismic Detector Storage Huge Storage Unit Processor Signal Interpreter Protection Scrap Shield Weapon Rocket Launcher Ballistic Gun Light Assault Rifle Launcher Rocket Launcher Special Weapon Multitool Impact Weapon Flail Build | -11 -10 -10 ------- Run | Yrd Mat Sub Slots Evolved . | . . . Power . | . . . Propulsion . | . . . Utility . | . . . Weapon . | . . . Parts Attached 26 | 8 8 10 Power 5 | 2 1 2 Engine 4 | 2 1 1 Core 1 | . . 1 Reactor . | . . . Propulsion 5 | 2 . 3 Treads 2 | 2 . . Leg 3 | . . 3 Wheel . | . . . Hover . | . . . Flight . | . . . Utility 9 | 2 4 3 Device 4 | 1 1 2 Storage 3 | 1 2 . Processor 1 | . 1 . Hackware . | . . . Protection 1 | . . 1 Artifact . | . . . Weapon 7 | 2 3 2 Energy Gun . | . . . Energy Cannon . | . . . Ballistic Gun 3 | 2 . 1 Ballistic Cannon . | . . . Launcher 2 | . 2 . Special Weapon 1 | . . 1 Impact Weapon 1 | . 1 . Slashing Weapon . | . . . Piercing Weapon . | . . . Special Melee Weapon . | . . . Unidentified Prototypes 1 | . . 1 Parts Lost 11 | . . 11 Power 4 | . . 4 Propulsion 3 | . . 3 Utility 1 | . . 1 Weapon 3 | . . 3 Highest Loss Streak 4 | . . 4 To Critical Strikes . | . . . Average Backups 5 | . 6 4 Power 1 | . 2 1 Propulsion . | . . . Utility 1 | . 2 1 Weapon 1 | . 1 . Tool/Special . | . . . Unused Backups 5 | . 1 4 Power 1 | . . 1 Propulsion 1 | . . 1 Utility 1 | . . 1 Weapon 2 | . 1 1 Tool/Special . | . . . Average Slot Usage (%) 83 | . 100 70 Engine 12 | . 14 11 Core 1 | . . 1 Treads 17 | . 28 9 Leg 7 | . . 13 Device 8 | . 13 3 Storage 6 | . 14 . Protection 3 | . . 6 Ballistic Gun 10 | . 21 1 Launcher 11 | . 5 16 Impact Weapon 3 | . 1 4 Peak Build Rating 21 | 7 10 21 Average Rating 10 | 5 7 13 On Entrance 5 | . 7 10 Avg Prop Armor Cover (%) 11 | . . 11 Naked Turns . | . . . Heaviest Build 94 | 14 94 54 Greatest Support 40 | 40 40 40 Greatest Overweight (x) 5 | . 2 5 Average Overweight (x) . | . 1 . Largest Inventory Capacity 25 | 8 25 20 Average Capacity 12 | 7 22 5 Most Carried 14 | 1 12 14 Average Carried 5 | . 6 4 Final Capacity 20 | 8 20 5 Final Carried 12 | 1 12 4 Class Distribution -------------------- 100% | Mutant Dominant Class ---------------- Mutant | -10/Materials Mutant | -10/Subcaves Resources | -11 -10 -10 ----------- Run | Yrd Mat Sub Matter Collected 871 | 134 183 554 Remotely . | . . . Salvage Created 352 | 15 220 117 Parts 21 | 2 14 5 Haulers Intercepted . | . . . Recyclers Shooed . | . . . Parts Field Recycled . | . . . Retrieved Matter . | . . . Parts Self-Destructed 14 | . . 14 Prevented . | . . . Parts Restored . | . . . Kills | -11 -10 -10 ------- Run | Yrd Mat Sub Combat Hostiles Destroyed 10 | . 7 3 Melee 1 | . . 1 Guns 4 | . 4 . AOE 4 | . 3 1 Classes Destroyed 5 | 1 3 1 Worker 1 | . 1 . Tunneler 1 | 1 . . Swarmer 1 | . 1 . Grunt 6 | . 6 . Subdweller 3 | . . 3 Best Kill Streak 3 | 1 3 2 Combat Bots Only 3 | . 3 2 Max Kills in Single Turn 2 | 1 2 1 Gunslinging . | . . . Exploded 2 | . 2 1 Melee 1 | . . 1 Uniques/NPCs Destroyed . | . . . Combat | -11 -10 -10 -------- Run | Yrd Mat Sub Hostile Shots Fired 110 | . 58 52 Missed 38 | . 19 19 Hits 72 | . 39 33 Projectile 72 | . 39 33 Critical Strikes 1 | . . 1 Damage Taken 1682 | . 428 1254 Core 261 | . 54 207 Absorbed by Shields . | . . . Core Remaining (%) 100 | 100 . . Volleys Fired 39 | 6 24 9 Largest 2 | 2 2 2 Hottest 66 | 40 66 66 Shots Fired 75 | 12 48 15 Gun 52 | 12 40 . Cannon . | . . . Launcher 23 | . 8 15 Special . | . . . Kinetic 52 | 12 40 . Thermal . | . . . Explosive 23 | . 8 15 Electromagnetic . | . . . Robot Hit Streak 11 | 2 11 1 Robot Miss Streak 3 | 3 3 3 Penetration Max . | . . . Secondary Targets 1 | . 1 . Max Gunslinging Chain 1 | . 1 . Shots Hit Robots 42 | 6 32 4 Core Hits 16 | 1 12 3 Critical Kills . | . . . Critical Parts Destroyed 1 | . . 1 Critical Strikes 1 | . . 1 Smash 1 | . . 1 Melee Attacks 20 | . 2 18 Impact 20 | . 2 18 Slashing . | . . . Piercing . | . . . Sneak Attacks . | . . . Combat Hostiles . | . . . Follow-up Attacks . | . . . Damage Inflicted 1030 | 83 675 272 Guns 363 | 83 280 . Cannons . | . . . Explosions 559 | . 395 164 Melee 104 | . . 104 Ramming 4 | . . 4 Kinetic 363 | 83 280 . Thermal . | . . . Explosive 549 | . 385 164 Electromagnetic 10 | . 10 . Impact 104 | . . 104 Slashing . | . . . Piercing . | . . . Highest Corruption 9 | . . 9 Average Corruption 5 | . . 5 Corruption Purged . | . . . Corruption Blocked . | . . . Effects 24 | . . 24 Message Errors 7 | . . 7 Matter Fused 6 | . . 6 Heat Flow Errors 4 | . . 4 Energy Discharges 3 | . . 3 Data Loss (minor) 2 | . . 2 Data Loss (major) 2 | . . 2 Overload Shots . | . . . Overflow Damage 39 | . . 39 Projectiles . | . . . Explosions . | . . . Melee 39 | . . 39 Knockbacks 1 | . . 1 Impact 1 | . . 1 Kinetic . | . . . Secondary . | . . . Self-Inflicted Damage 55 | . 30 25 Shots 2 | . 1 1 Rammed 1 | 1 . . Targets Rammed 1 | 1 . . Kicked . | . . . Crushed . | . . . Highest Temperature 211 | . 24 211 Average Temperature 41 | . 8 94 Received Heat Transfer 321 | . 174 147 Siege Activations . | . . . Martial Activations . | . . . Shielding Activations . | . . . Robots Disrupted . | . . . Combat Hostiles . | . . . Robots Corrupted 1 | . . 1 Combat Hostiles 1 | . . 1 Parts Fried 2 | . . 2 Impact Corruptions 1 | . . 1 Robots Melted . | . . . Combat Hostiles . | . . . Parts Melted . | . . . Heat Transferred . | . . . Parts Sabotaged . | . . . Parts Stolen . | . . . Parts Stripped . | . . . Power Chain Reactions . | . . . Alert | -11 -10 -10 ------- Run | Yrd Mat Sub Maximum Alert Level . | . . . Low Security (%) 100 | 100 100 . Level 1 . | . . . Level 2 . | . . . Level 3 . | . . . Level 4 . | . . . Level 5 . | . . . High Security . | . . . Max Security . | . . . Peak Influence 125 | 5 125 . Initial . | . . . Average 22 | . 24 . Influence Increases 267 | 5 262 . Destroy 0b10 Robot/C 140 | . 140 . Destroy 0b10 Robot/NC 10 | 5 5 . Destroy Leader 20 | . 20 . Disable Machine 30 | . 30 . Destroy Structure 37 | . 37 . Lose Combat Pursuer 30 | . 30 . Influence Decreases 267 | 5 189 73 Entered New Map 36 | . . 36 Time Decay 231 | 5 189 37 Squads Dispatched 4 | . 4 . Investigation 3 | . 3 . Extermination . | . . . Reinforcement 1 | . 1 . Assault . | . . . Garrison . | . . . Intercept . | . . . Searches Triggered . | . . . Construction Impeded . | . . . Haulers Reinforced . | . . . Active Scanning Responses . | . . . Cargo Convoy Interrupts . | . . . Stealth | -11 -10 -10 --------- Run | Yrd Mat Sub Distress Signals 2 | . 2 . Communications Jammed . | . . . Distress Signals . | . . . Times Spotted 35 | . 13 22 Peak Tracking Total 8 | . 3 8 Tactical Retreats 3 | . 2 1 Traps | -11 -10 -10 ------- Run | Yrd Mat Sub Traps Triggered 3 | . 1 2 Indirectly 1 | . 1 . Trap Hack Attempts . | . . . Triggered . | . . . Disarmed . | . . . Reprogrammed . | . . . Reused . | . . . Traps Extracted . | . . . Installed . | . . . Triggered . | . . . Machines | -11 -10 -10 ---------- Run | Yrd Mat Sub Machines Disabled 2 | . 2 . Max in Single Turn 1 | . 1 . Machines Repaired . | . . . Machines Dismantled . | . . . Machines Sabotaged . | . . . Overloaded Fab Kills . | . . . Hacking | -11 -10 -10 --------- Run | Yrd Mat Sub Machines Accessed 5 | . 5 . Terminals 4 | . 4 . Fabricators . | . . . Repair Stations . | . . . Recycling Units 1 | . 1 . Scanalyzers . | . . . Garrison Access . | . . . Total Hacks 13 | . 13 . Successful 2 | . 2 . Failed 11 | . 11 . Catastrophic 5 | . 5 . Database Lockouts . | . . . Manual 9 | . 9 . Terminals 10 | . 10 . Fabricators . | . . . Repair Stations . | . . . Recycling Units 3 | . 3 . Scanalyzers . | . . . Garrison Access . | . . . Terminal Hacks 1 | . 1 . Zone Layout 1 | . 1 . Fabricator Hacks . | . . . Repair Station Hacks . | . . . Recycling Unit Hacks 1 | . 1 . Process 1 | . 1 . Scanalyzer . | . . . Garrison Access Hacks . | . . . Unauthorized Hacks . | . . . Terminals . | . . . Fabricators . | . . . Repair Stations . | . . . Recycling Units . | . . . Scanalyzers . | . . . Garrison Access . | . . . Data Cores Recovered . | . . . Used . | . . . Hacking Detections 5 | . 5 . Full Trace Events 3 | . 3 . Feedback Events . | . . . Feedback Blocked . | . . . Robot Schematics Acquired . | . . . Robots Built . | . . . Authchips . | . . . Time . | . . . Total Robot Build Rating . | . . . Part Schematics Acquired . | . . . Parts Built . | . . . Authchips . | . . . Time . | . . . Total Part Build Rating . | . . . Part Studies Acquired . | . . . Parts Repaired . | . . . Time . | . . . Parts Recycled . | . . . Recycled Matter 21 | . 21 . Retrieved Matter . | . . . Retrieved Components . | . . . Parts Scanalyzed . | . . . Part Schematics Acquired . | . . . Parts Damaged . | . . . Bothacking | -11 -10 -10 ------------ Run | Yrd Mat Sub Used RIF Installer . | . . . Robots Hacked . | . . . Non-combat . | . . . Combat . | . . . Robot Hacks Applied . | . . . Relay Couplers Released . | . . . Fabnet Peak Effective % . | . . . Robots Rewired . | . . . Allies Hacked . | . . . Hacks Repelled . | . . . Allies | -11 -10 -10 -------- Run | Yrd Mat Sub Total Allies . | . . . Largest Group . | . . . Highest-Rated Group . | . . . Highest-Rated Ally . | . . . Total Orders . | . . . Ally Attacks . | . . . Total Damage . | . . . Kills . | . . . Allies Corrupted . | . . . Allies Melted . | . . . Intel | -11 -10 -10 ------- Run | Yrd Mat Sub Active Infowar (turns) 1828 | 9 1326 493 Optics 470 | . . 470 Structural 284 | . 261 23 Seismic 1074 | 9 1065 . Robot Analysis Total . | . . . Derelict Logs Recovered 2 | . . 2 Drone Launches . | . . . Drone Recoveries . | . . . Exploration | -11 -10 -10 ------------- Run | Yrd Mat Sub Turns Passed 3171 | 104 1342 1725 Spaces Moved 1399 | 49 371 979 Core 162 | 3 . 159 Treads 724 | 46 371 307 Legs 513 | . . 513 Wheels . | . . . Hover . | . . . Flight . | . . . Fastest Speed 50 | 50 160 100 Average Speed 189 | 153 270 160 Slowest Speed 320 | 160 320 300 Overloaded Moves . | . . . Propulsion Burnouts . | . . . Robots Hopped . | . . . Potential Cave-ins 11 | . . 11 Cave-ins Triggered 2 | . . 2 Exploration Rate (%) 37 | 4 58 50 Regions Visited 2 Branch Regions 1 Pre-discovered Areas . | . . . Known Exits Taken . | . . . Unknown Exits Taken 2 | 1 1 . Scrap Searched . | . . . Spaces Dug 2 | . 1 1 Terrain Destroyed 197 | . 35 162 Melee 2 | . 1 1 Projectile . | . . . AOE 195 | . 34 161 Terrain Rammed 2 | . . 2 Walls Destroyed . | . . . Machines Disabled . | . . . Actions | -11 -10 -10 --------- Run | Yrd Mat Sub Total 1805 | 63 660 1082 Wait 278 | . 242 36 Move 1396 | 49 370 977 Hop . | . . . Pick Up 16 | . 9 7 Fast Attach 16 | 7 2 7 Attach 7 | . . 7 Detach 7 | . 2 5 Swap 13 | 1 8 4 Drop 7 | . 1 6 Fire 39 | 6 24 9 Melee 20 | . 2 18 Ram 2 | . . 2 Kick . | . . . Crush . | . . . Escape Stasis 2 | . . 2 Rewire . | . . . Trap . | . . . Miscellaneous 2 | . . 2 Route ------- -11/Scrapyard -10/Materials (discovered 3 exits: *Mat x2 / [*Sub]) -10/Subcaves History --------- Turn | Location | Event 14 | -11/Scrapyard | Discovered new exit (range 16) 105 | -11/Scrapyard | Entered Materials 307 | -10/Materials | Build established: Mutant 939 | -10/Materials | Discovered new exit (range 5) 963 | -10/Materials | Identified exit to Materials 1322 | -10/Materials | Discovered exit to Materials (range 5) 1430 | -10/Materials | Discovered new exit (range 7) 1447 | -10/Materials | Entered Subcaves 1448 | -10/Subcaves | Approached by a straggling Scientist 1602 | -10/Subcaves | A swath of the cavern ceiling suddenly collapsed 1835 | -10/Subcaves | Shifting Twisted Machinery released Sub. Power Source 1873 | -10/Subcaves | Ambushed by swarm of Subdwellers 2286 | -10/Subcaves | Ambushed by Subdweller buried in earth 2304 | -10/Subcaves | Ambushed by Subdweller buried in earth 2319 | -10/Subcaves | Crushed by falling debris 2326 | -10/Subcaves | Crushed by falling debris 2335 | -10/Subcaves | Shifting Twisted Machinery released Spk. Treads 2336 | -10/Subcaves | Shifting Twisted Machinery released Mak. Leg 2357 | -10/Subcaves | Lost 4 parts (1p1n1u1w) 2574 | -10/Subcaves | Core integrity fell below 50% 2717 | -10/Subcaves | A Subdweller sparked back to life 2794 | -10/Subcaves | Learned Materials emergency access door positions 2820 | -10/Subcaves | Core integrity fell below 20% 2856 | -10/Subcaves | Found Prototype Power Core 2856 | -10/Subcaves | Identified Meta Core 2858 | -10/Subcaves | Attached Meta Core, gained temporary slots: Propulsion, Utility, Weapon 2871 | -10/Subcaves | Lost 4 parts (1p2n1w) 3172 | -10/Subcaves | Destroyed by GJ-W87(R) with Subdweller Laser Last Messages --------------- 02862_ System corrupted: Substantial component data lost. 02864_ Acquired Sub. Optics. 02869_ Acquired Sub. Machine Gun. 02877_ Acquired 30 matter. 02891_ /%RNZSEHZUJ2MIKI3WZ/U#LM32 02941_ System corrupted: Component data lost. 02957_ System corrupted: Energy discharge (-61). 03032_ R>CRE:%ZKW1RJGR,VN DCAMQA5DOMVOY9KNVBIH 03049_ 1RFOD6PVCQQ4WZ6680X,FZ|# 03075_ System corrupted: Matter fused (-6). 03092_ System corrupted: Matter fused (-10). 03141_ Slammed into Twisted Machinery. 03141_ Destabilizing: System corrupted (+2). 03143_ Slammed into Twisted Machinery. 03143_ Sub. Machine Gun broken. 03143_ Destabilizing: Short circuit. 03146_ System corrupted: Matter fused (-10). 03167_ System corrupted: Energy discharge (-52). Map ----- +----------------------------------------------------+ | ?????????????????????????????????????????????????? | | ?????????????????????????????????????????????????? | | ?????????????????????????????????????????????????? | | ?????????????????????????????????????????????????? | | ?????????????????????????????????????????????????? | | ?????????????????????????????????????????????????? | | ?????????????????????????????????????????????????? | | ?????????????????????????????????????????????????? | | ?????????????????????????????????????????????????? | | ?????????????????????????????????????????????????? | | ?????????????????????????????????????????????????? | | ?????????????????????????????????????????????????? | | ?????????????????????????????????????????????????? | | ?????????????????????????????????????????????????? | | ?????????????????????????????????????????????????? | | ?????????????????????????????????????????????????? | | #????????????????????????????????????????????????? | | ##???????????????????????????????????????????????? | | ##??????????????????????????????????????????????? | | ######???????????????????????????##????????????? | | ##?????????????????##????? #????????????? | | #?######????????## #???? #????????????? | | ### ########## #?? #????????????? | | "" " " ## #????????????? | | ### "" """ #????????????? | | ??###### ## """" @ #???????????? | | ???????######## " R # #### #??????????? | | ??????????????## ## #?????????????????????? | | ???????????????##""" ##R ##?????????????????????? | | ????????????????# """ ""#??????????????????????? | | ????????????????# "" "" #?????????????????????? | | ????????????????# " """ ????????????????????? | | ????????????????#""### ???????????????????? | | ????????????????####?# ??????????????????? | | ?????????????????????" ?????????????????? | | ?????????????????????""" ?????????????????? | | ????????????????????? """" ?????????????????? | | ????????????????????????""" ##???????????????????? | | ??????????????????????????? #????????????????????? | | ?????????????????????????????????????????????????? | | ?????????????????????????????????????????????????? | | ?????????????????????????????????????????????????? | | ?????????????????????????????????????????????????? | | ?????????????????????????????????????????????????? | | ?????????????????????????????????????????????????? | | ?????????????????????????????????????????????????? | | ?????????????????????????????????????????????????? | | ?????????????????????????????????????????????????? | | ?????????????????????????????????????????????????? | | ?????????????????????????????????????????????????? | +----------------------------------------------------+ Best States ------------- Heat Dissipation 25 Energy Generation 17 Energy Capacity 250 Matter Stores 300 Matter Capacity 300 Sight Range 21 Terrain Scan Density 10 Armor Coverage 800 Evasion (%) 55 Recoil Reduction 2 Item Schematics ----------------- None Robot Schematics ------------------ None Fabricated ------------ Nothing Repaired ---------- Nothing Studied --------- None Alien Tech Used ----------------- None Achievements -------------- Do Not Disturb Survival Of The Most Covered Challenges ------------ None Game ------ Seed BlanketAerolevTurbovents Manual? 0 Play Time 00:25:54 Cumulative 40.2 hours Start 2026.07.22 @ 21:09:20 End 2026.07.22 @ 21:41:16 Sessions 1 Manual Loads 0 Difficulty Rogue Special Mode None Game No. 33 Rogue 33 Adventurer 0 Explorer 0 Win Type - Total 0 Types 0/0/0/0/0/0/0/0/0/0 Lore% 27 Gallery% 36 Achievement% 23 Wizard Run 0 Options --------- Layout 2 ASCII 0 Keyboard 1 Movement Numpad Keybinds 0 Fullscreen 1 Font 24/Smallcaps Map View 50x44 Zoom Use 0% Tactical HUD 1 Map Filters NONE Filters NONE Steam 1 RUN: 4f3d9943-80b8-45a5-a53f-d7d2afbc8df5